bitfinex/quotes_SOLUSD_20240729
["timestamp","ask_amount","ask_price","bid_price","bid_amount"]
[1722271829460,1.35025381,185.21,185.13,5.4015]
[1722271829661,25.27,185.22,185.11,20.17]
[1722271829662,1.3502568,185.2,185.11,20.17]
[1722271829866,5.4001,185.19,185.12,5.4016]
[1722271830168,30.67,185.19,185.12,5.4018]
[1722271830347,25.27,185.19,185.1,5.4023]
[1722271830541,5.4004,185.18,185.11,20.0]
[1722271830745,5.4004,185.18,185.12,5.4018]
[1722271831145,25.27,185.19,185.14,5.4013]
[1722271831453,25.27,185.19,185.1,20.17]
[1722271831760,25.27,185.19,185.1,20.0]
[1722271831966,25.27,185.19,185.09,6.64486182]
[1722271832169,5.4004,185.17,185.11,5.4021]
[1722271832466,25.27,185.19,185.09,6.1041]
[1722271832640,25.27,185.19,185.1,20.0]
[1722271833049,5.4004,185.18,185.1,25.4024]
[1722271833253,5.4007,185.17,185.1,25.4024]
[1722271833450,25.27,185.19,185.09,11.5068]
[1722271833660,25.27,185.16,185.09,6.1041]
[1722271833868,5.4014,185.14,185.09,6.1041]
[1722271834054,5.401,185.15,185.09,6.1041]
[1722271834464,5.4016,185.13,185.09,6.1041]
[1722271834989,25.27,185.13,185.09,6.1041]
[1722271835462,30.6716,185.13,185.09,6.1041]
[1722271835665,25.27,185.13,185.09,6.1041]
[1722271836551,5.402,185.12,185.09,6.1041]
[1722271836957,30.6716,185.13,185.09,6.1041]
[1722271837372,25.27,185.16,185.09,6.1041]
[1722271837563,5.4017,185.13,185.09,6.1041]
[1722271837760,25.27,185.16,185.09,6.1041]
[1722271837761,5.4012,185.15,185.09,6.1041]
[1722271838079,25.27,185.16,185.11,5.4021]
[1722271838578,25.27,185.16,185.09,6.1041]
[1722271838748,25.27,185.16,185.11,5.4019]
[1722271839069,30.6709,185.16,185.09,11.5066]
[1722271839458,5.401,185.15,185.09,11.5066]
[1722271839655,25.27,185.16,185.1,5.4024]
[1722271840168,25.27,185.16,185.11,5.4021]
[1722271840343,25.27,185.16,185.12,5.4018]
[1722271840546,30.6707,185.16,185.09,11.5065]
[1722271840857,25.27,185.16,185.09,6.1041]
[1722271841373,25.27,185.16,185.1,5.4024]
[1722271841675,25.27,185.16,185.11,5.402]
[1722271842256,25.27,185.16,185.1,5.4024]
[1722271842257,30.6707,185.16,185.1,5.4024]
[1722271842573,25.27,185.16,185.11,5.4021]
[1722271843476,25.27,185.22,185.08,16.5291388]
[1722271843477,25.27,185.31,185.17,22.781]
[1722271843659,25.27,185.25,185.17,22.781]
[1722271844051,25.27,185.25,185.2,5.3993]
[1722271844259,25.27,185.25,185.21,5.3991]
[1722271844561,25.27,185.25,185.17,23.32038945]
[1722271844562,25.27,185.25,185.19,5.3996]
[1722271844765,25.27,185.25,185.2,5.3994]
[1722271845063,25.27,185.25,185.21,5.3991]
[1722271845370,25.27,185.25,185.22,5.3989]
[1722271845550,25.27,185.25,185.18,20.0]
[1722271845749,25.27,185.25,185.22,5.3988]
[1722271846172,25.27,185.25,185.18,20.53915622]
[1722271846368,25.27,185.25,185.21,5.3991]
[1722271846559,25.27,185.25,185.2,5.3995]
[1722271847365,25.27,185.25,185.18,20.0]
[1722271847366,1.34976891,185.24,185.18,5.4]
[1722271847548,1.34978513,185.24,185.17,22.951]
[1722271847767,6.74861659,185.23,185.17,22.781]
[1722271848281,25.27,185.22,185.18,5.4001]
[1722271848574,25.27,185.22,185.17,28.1813]
[1722271849161,25.27,185.22,185.18,20.0]
[1722271849374,25.27,185.23,185.17,22.781]
[1722271849555,25.27,185.23,185.17,28.1813]
[1722271849755,25.27,185.23,185.18,5.3999]
[1722271849979,25.27,185.23,185.18,0.53943324]
[1722271850177,25.27,185.26,185.18,0.53943324]
[1722271850385,25.27,185.26,185.2,5.3993]
[1722271850561,25.27,185.26,185.17,42.781]
[1722271850562,25.27,185.23,185.19,5.3998]
[1722271850874,25.27,185.23,185.17,42.781]
[1722271851078,6.65254109,185.3,185.24,5.3983]
[1722271851379,25.27,185.27,185.2,20.0]
[1722271851554,25.27,185.27,185.21,5.3992]
[1722271851758,25.27,185.27,185.2,20.0]
[1722271851960,25.27,185.27,185.23,5.3986]
[1722271852267,25.27,185.27,185.21,5.399]
[1722271852469,26.61967293,185.27,185.21,5.399]
[1722271853080,25.27,185.27,185.22,5.3989]
[1722271853376,30.6675,185.27,185.18,20.0]
[1722271853677,30.6675,185.27,185.21,5.3991]
[1722271854562,5.3979,185.26,185.18,20.0]
[1722271854889,25.27,185.27,185.19,0.53931546]
[1722271855382,25.27,185.27,185.22,5.3988]
[1722271855981,25.27,185.27,185.23,5.3986]
[1722271856468,25.27,185.27,185.22,5.3987]
[1722271856669,25.27,185.27,185.2,20.0]
[1722271856879,25.27,185.27,185.21,45.17]
[1722271857066,25.27,185.27,185.2,20.0]
[1722271857269,25.27,185.27,185.22,20.0]
[1722271857466,25.27,185.27,185.23,5.3986]
[1722271857880,25.27,185.27,185.24,5.3982]
[1722271858078,1.25584109,185.3,185.24,5.3982]
[1722271858477,6.65264109,185.3,185.24,5.3982]
[1722271858785,5.397,185.29,185.23,5.3986]
[1722271859374,5.3972,185.28,185.21,5.399]
[1722271860290,5.3972,185.28,185.22,5.3989]
[1722271860463,1.25584109,185.3,185.17,42.781]
[1722271860464,5.3978,185.26,185.18,20.0]
[1722271860792,25.27,185.25,185.17,22.781]
[1722271860968,5.3984,185.24,185.18,5.3998]
[1722271861586,5.3987,185.23,185.17,22.781]
[1722271861774,30.669,185.22,185.17,6.1785]
[1722271862174,25.27,185.22,185.13,22.0516]
[1722271862389,5.3995,185.2,185.13,22.0516]
[1722271862561,30.6691,185.22,185.13,42.0516]
[1722271862768,25.27,185.22,185.17,5.4004]
[1722271862971,25.27,185.25,185.18,0.53957906]
[1722271863196,25.27,185.25,185.2,5.3993]
[1722271863404,5.3984,185.24,185.17,25.4002]
[1722271863768,1.3499993,185.24,185.16,5.4006]
[1722271863971,5.3992,185.22,185.16,5.4006]
[1722271864173,25.27,185.22,185.17,5.4004]
[1722271864404,25.27,185.22,185.13,22.0516]
[1722271864694,25.27,185.22,185.16,5.4007]
[1722271864997,25.27,185.28,185.18,20.0]
[1722271865301,30.6672,185.28,185.22,5.3989]
[1722271865491,30.6673,185.28,185.21,5.399]
[1722271866392,5.3976,185.27,185.21,5.399]
[1722271866594,5.3978,185.26,185.2,5.3995]
[1722271866911,1.34969949,185.27,185.18,20.0]
[1722271867106,5.3985,185.24,185.18,20.0]
[1722271867393,25.27,185.28,185.15,20.0]
[1722271867573,5.3987,185.23,185.17,5.4004]
[1722271867777,30.6683,185.25,185.18,5.4]
[1722271868077,25.27,185.25,185.18,5.4]
[1722271868290,5.3985,185.24,185.18,5.4]
[1722271868476,25.27,185.25,185.16,5.4007]
[1722271868677,5.3992,185.22,185.15,25.4007]
[1722271868880,5.3992,185.22,185.16,5.4007]
[1722271869088,5.3992,185.22,185.15,20.0]
[1722271869089,5.3996,185.2,185.15,20.0]
[1722271869301,25.27,185.22,185.15,25.4009]
[1722271870001,30.669,185.22,185.15,25.4009]
[1722271870505,25.27,185.22,185.15,20.0]
[1722271870876,5.3992,185.21,185.15,20.0]
[1722271871095,5.3992,185.21,185.15,25.401]
[1722271871600,30.6689,185.22,185.15,25.401]
[1722271871901,30.6689,185.22,185.16,5.4007]
[1722271872093,30.6689,185.22,185.15,20.0]
[1722271872398,30.6689,185.22,185.15,25.401]
[1722271873475,5.3996,185.2,185.15,20.0]
[1722271873702,30.6692,185.22,185.15,20.0]
[1722271874079,5.3993,185.21,185.15,25.401]
[1722271874778,5.3993,185.21,185.15,20.0]
[1722271874979,5.3996,185.2,185.15,20.0]
[1722271875284,5.4003,185.18,185.15,20.0]
[1722271875478,30.6698,185.19,185.15,20.0]
[1722271875687,25.27,185.19,185.15,20.0]
[1722271876187,25.26,185.2,185.15,20.0]
[1722271876504,12.3376,185.28,185.18,20.0]
[1722271876679,1.25584109,185.3,185.18,20.0]
[1722271876680,5.3979,185.26,185.18,26.0183]
[1722271876880,5.3981,185.25,185.19,5.3998]
[1722271877089,5.3984,185.24,185.18,11.4183]
[1722271877307,25.26,185.24,185.18,6.0183]
[1722271877609,5.3992,185.21,185.14,31.4193]
[1722271877783,30.6592,185.21,185.14,31.4193]
[1722271877982,5.4001,185.19,185.14,26.0183]
[1722271878189,30.6595,185.21,185.14,31.4195]
[1722271878610,30.6595,185.21,185.15,5.4009]
[1722271879481,30.6595,185.21,185.14,31.4195]
[1722271879882,5.3995,185.2,185.14,31.4195]
[1722271880297,5.3999,185.19,185.14,26.0183]
[1722271880497,5.4004,185.17,185.14,26.0183]
[1722271880709,5.4004,185.17,185.14,20.0]
[1722271880881,30.6611,185.15,185.09,28.3799]
[1722271881894,25.26,185.15,185.09,6.3615]
[1722271882297,5.4017,185.13,185.09,6.3615]
[1722271882604,2.06316697,185.25,185.15,20.0]
[1722271882906,2.06316697,185.25,185.1,15.77135227]
[1722271882907,25.26,185.25,185.17,20.0]
[1722271883414,6.74830839,185.24,185.17,20.0]
[1722271883586,6.74830839,185.24,185.17,25.4003]
[1722271883587,5.3987,185.23,185.17,25.4003]
[1722271883790,30.6581,185.25,185.19,5.3997]
[1722271883997,5.3984,185.24,185.18,6.2591]
[1722271884614,5.3984,185.24,185.18,11.6591]
[1722271885022,6.74852232,185.23,185.18,6.2591]
[1722271885332,5.3986,185.24,185.18,6.2591]
[1722271885522,25.26,185.25,185.18,6.79866429]
[1722271885818,25.26,185.25,185.19,15.2226]
[1722271885998,25.26,185.28,185.22,20.0]
[1722271886198,5.3973,185.28,185.22,25.3989]
[1722271886403,5.3973,185.28,185.19,15.3926]
[1722271886404,25.26,185.28,185.19,15.3926]
[1722271886612,5.3976,185.27,185.19,15.3926]
[1722271886992,25.26,185.28,185.2,20.0]
[1722271887315,25.26,185.31,185.24,5.3983]
[1722271887613,30.6563,185.31,185.25,5.3979]
[1722271888400,30.6563,185.31,185.24,25.3983]
[1722271888723,5.3967,185.3,185.24,25.3983]
[1722271889013,30.6566,185.31,185.24,25.3983]
[1722271889219,25.26,185.31,185.24,20.0]
[1722271889428,25.26,185.31,185.25,5.398]
[1722271889633,1.34934789,185.3,185.22,20.0]
[1722271889927,5.3971,185.29,185.23,25.3984]
[1722271890095,5.3967,185.3,185.24,5.3982]
[1722271890406,1.3493692,185.29,185.2,20.0]
[1722271890607,1.3493692,185.29,185.21,0.17]
[1722271890813,25.26,185.28,185.2,20.0]
[1722271891509,1.34970468,185.27,185.19,15.2226]
[1722271891704,5.3984,185.24,185.19,15.2226]
[1722271891914,5.3988,185.23,185.18,6.2591]
[1722271892097,1.34995225,185.22,185.18,6.2591]
[1722271892413,5.3984,185.24,185.18,11.6592]
[1722271892625,30.6581,185.25,185.19,5.3998]
[1722271893422,25.26,185.22,185.14,15.1602]
[1722271893594,25.26,185.22,185.13,6.5644]
[1722271893595,5.4002,185.18,185.13,6.5644]
[1722271894319,5.4008,185.16,185.1,16.5555]
[1722271894492,5.4011,185.15,185.1,16.5555]
[1722271894924,5.4011,185.15,185.09,5.4025]
[1722271894925,1.35047827,185.14,185.09,5.4025]
[1722271895297,5.4006,185.17,185.11,5.4021]
[1722271895606,1.3505918,185.17,185.08,7.3669388]
[1722271895797,5.401,185.15,185.08,7.3669388]
[1722271895991,1.35062796,185.14,185.08,7.3669388]
[1722271896234,25.27,185.19,185.13,5.4015]
[1722271896730,25.27,185.19,185.11,20.0]
[1722271896930,30.669,185.22,185.13,20.0]
[1722271897294,5.3986,185.24,185.17,5.4003]
[1722271897611,30.6681,185.25,185.18,5.4]
[1722271898095,5.3984,185.24,185.18,5.4]
[1722271898297,25.27,185.25,185.17,5.4002]
[1722271899103,5.3984,185.24,185.18,5.4001]
[1722271899298,25.27,185.25,185.16,20.0]
[1722271899930,5.399,185.22,185.15,21.4519]
[1722271900219,25.27,185.25,185.15,36.0512]
[1722271900439,5.3986,185.24,185.17,5.4004]
[1722271900604,5.3987,185.23,185.17,5.4004]
[1722271900807,5.3991,185.22,185.15,16.0512]
[1722271901135,1.35002821,185.23,185.15,16.0512]
[1722271901330,25.27,185.25,185.15,16.0512]
[1722271901331,5.3994,185.21,185.15,16.0512]
[1722271901620,25.27,185.22,185.15,16.0512]
[1722271901826,30.6692,185.22,185.15,21.4521]
[1722271902022,30.6692,185.22,185.16,5.4007]
[1722271902213,5.3993,185.21,185.15,21.4521]
[1722271903022,1.35014096,185.2,185.15,16.0512]
[1722271903329,5.3998,185.19,185.11,15.3065]
[1722271903501,1.35030783,185.18,185.11,15.3065]
[1722271903703,1.35028985,185.21,185.11,15.3065]
[1722271903927,5.4007,185.16,185.11,15.3065]
[1722271904221,26.62048361,185.19,185.11,15.3065]
[1722271904529,25.27,185.19,185.12,20.0]
[1722271904830,1.35025592,185.18,185.12,5.4016]
[1722271905023,1.35025592,185.18,185.13,5.4015]
[1722271905229,6.75055592,185.18,185.11,20.7084]
[1722271905603,5.4003,185.18,185.12,5.4018]
[1722271905808,5.4001,185.18,185.12,5.4018]
[1722271906011,6.75111246,185.17,185.11,20.7086]
[1722271906213,6.75111246,185.17,185.08,7.3669388]
[1722271906214,5.4014,185.14,185.08,7.3669388]
[1722271906416,26.62067402,185.16,185.08,7.3669388]
[1722271906849,5.4016,185.13,185.08,7.3669388]
[1722271907010,5.4021,185.12,185.08,0.7694388]
[1722271907202,5.4016,185.13,185.08,0.7694388]
[1722271907404,1.35082841,185.12,185.08,0.7694388]
[1722271908634,25.27,185.13,185.08,0.7694388]
[1722271909215,26.62082697,185.13,185.08,0.7694388]
[1722271909522,5.4027,185.09,185.08,0.7694388]
[1722271910531,30.6724,185.1,185.08,0.7694388]
[1722271911013,5.4027,185.09,185.08,0.7694388]
[1722271911213,6.75378499,185.09,185.08,0.7694388]
[1722271911413,5.4027,185.09,185.08,0.7694388]
[1722271912436,30.6724,185.1,185.08,0.7694388]
[1722271913238,25.27,185.1,185.08,0.7694388]
[1722271913443,5.4027,185.09,185.08,0.7694388]
[1722271913744,30.6725,185.1,185.08,0.7694388]
[1722271913943,25.27,185.1,185.08,0.7694388]
[1722271915258,25.27,185.13,185.08,0.7694388]
[1722271915426,5.4025,185.1,185.08,0.7694388]
[1722271915629,5.4019,185.12,185.08,0.7694388]
[1722271916052,25.27,185.13,185.08,0.7694388]
[1722271916347,5.4022,185.11,185.08,0.7694388]
[1722271917044,25.27,185.13,185.08,0.7694388]
[1722271917232,1.35073344,185.12,185.08,0.7694388]
[1722271917437,25.27,185.16,185.08,0.7694388]
[1722271917744,5.4014,185.14,185.08,0.7694388]
[1722271918040,30.6708,185.16,185.1,5.4024]
[1722271918247,5.401,185.15,185.09,21.9882]
[1722271918433,25.27,185.16,185.09,21.9882]
[1722271918636,30.6709,185.16,185.09,27.3909]
[1722271918835,30.6709,185.16,185.1,5.4023]
[1722271919035,14.84963267,185.2,185.1,5.4023]
[1722271919036,25.27,185.19,185.1,5.4023]
[1722271919248,5.4004,185.18,185.11,5.4021]
[1722271919443,5.4005,185.17,185.11,5.4021]
[1722271919643,5.4001,185.18,185.11,5.4021]
[1722271919827,5.4004,185.17,185.11,5.4021]
[1722271920452,25.27,185.19,185.1,20.0]
[1722271920627,25.27,185.16,185.09,21.9882]
[1722271920822,5.4018,185.13,185.09,21.9882]
[1722271921251,13.4995,185.2,185.09,21.9882]
[1722271921459,25.27,185.17,185.09,21.9882]
[1722271921626,5.4019,185.12,185.09,21.9882]
[1722271921947,25.27,185.14,185.09,21.9882]
[1722271922259,25.27,185.11,185.08,0.7694388]
[1722271922450,5.4025,185.1,185.08,0.7694388]
[1722271922755,5.4027,185.09,185.08,0.7694388]
[1722271924525,30.6724,185.11,185.08,0.7694388]
[1722271924944,25.27,185.11,185.08,0.7694388]
[1722271925151,5.4027,185.09,185.08,0.7694388]
[1722271925855,6.75345258,185.1,185.08,0.7694388]
[1722271926064,5.4025,185.1,185.08,0.7694388]
[1722271926742,25.27,185.14,185.08,0.7694388]
[1722271927262,5.4022,185.11,185.08,0.7694388]
[1722271927630,26.62081857,185.14,185.08,0.7694388]
[1722271927833,5.4027,185.09,185.08,0.7694388]
[1722271928051,5.4024,185.1,185.08,0.7694388]
[1722271928253,5.4022,185.11,185.08,0.7694388]
[1722271928449,5.4024,185.1,185.08,0.7694388]
[1722271928944,5.4021,185.12,185.08,0.7694388]
[1722271929152,5.4026,185.1,185.08,0.7694388]
[1722271929352,1.35091211,185.11,185.08,0.7694388]
[1722271929353,6.75311211,185.11,185.08,0.7694388]
[1722271929857,5.4027,185.09,185.08,0.7694388]
[1722271930062,5.4024,185.1,185.08,0.7694388]
[1722271930242,5.4022,185.11,185.08,0.7694388]
[1722271930655,5.4025,185.1,185.08,0.7694388]
[1722271931434,5.4027,185.09,185.08,0.7694388]
[1722271931635,5.4025,185.1,185.08,0.7694388]
[1722271932065,5.4021,185.11,185.08,0.7694388]
[1722271932270,5.4019,185.12,185.08,0.7694388]
[1722271932732,5.4025,185.1,185.08,0.7694388]
[1722271933046,5.4027,185.09,185.08,0.7694388]
[1722271933251,5.402,185.12,185.08,0.7694388]
[1722271933455,25.27,185.14,185.08,0.7694388]
[1722271933974,5.4019,185.12,185.08,0.7694388]
[1722271934174,25.27,185.14,185.08,0.7694388]
[1722271934372,5.4008,185.16,185.1,5.4022]
[1722271934675,5.401,185.15,185.09,5.4025]
[1722271934845,5.4007,185.16,185.11,5.4021]
[1722271935051,5.4004,185.17,185.11,5.4019]
[1722271935250,5.4018,185.13,185.08,0.7694388]
[1722271935467,5.4017,185.13,185.08,0.7694388]
[1722271935875,26.62081513,185.17,185.08,0.7694388]
[1722271935876,5.4012,185.15,185.08,0.7694388]
[1722271936375,26.62061133,185.17,185.08,6.1724388]
[1722271936554,5.4016,185.13,185.08,0.7694388]
[1722271937178,26.62065514,185.17,185.12,5.4017]
[1722271937342,2.13251649,185.21,185.1,40.0]
[1722271937546,25.27,185.23,185.18,6.2051]
[1722271938272,30.6689,185.23,185.18,6.2051]
[1722271938782,25.27,185.23,185.18,6.2051]
[1722271939248,25.27,185.26,185.18,6.2051]
[1722271939748,5.3987,185.23,185.19,15.249]
[1722271939973,5.3989,185.22,185.19,15.249]
[1722271940472,26.61997777,185.26,185.18,6.2051]
[1722271940473,5.3998,185.19,185.18,6.2051]
[1722271940770,5.3991,185.22,185.18,6.2051]
[1722271940971,25.27,185.23,185.18,6.2051]
[1722271941144,1.3501939,185.22,185.18,6.2051]
[1722271941343,5.3995,185.21,185.18,6.2051]
[1722271941547,25.27,185.23,185.18,6.2051]
[1722271941776,30.6687,185.23,185.18,6.2051]
[1722271941975,25.27,185.23,185.18,6.2051]
[1722271942276,5.3981,185.26,185.19,5.3997]
[1722271942651,5.3981,185.26,185.2,5.3995]
[1722271942886,5.3981,185.26,185.18,6.2051]
[1722271943467,25.27,185.28,185.2,5.3994]
[1722271943675,5.3977,185.27,185.2,5.3994]
[1722271944083,30.6672,185.28,185.19,40.0]
[1722271944380,5.3972,185.28,185.22,5.3989]
[1722271944553,25.27,185.31,185.23,21.8345]
[1722271944756,5.3972,185.29,185.23,16.4361]
[1722271945149,25.27,185.31,185.23,16.4361]
[1722271945582,5.3962,185.32,185.24,6.3484]
[1722271945885,5.3962,185.32,185.25,5.3981]
[1722271946069,5.3964,185.31,185.25,5.3981]
[1722271946381,25.27,185.36,185.25,5.3978]
[1722271946553,5.3966,185.3,185.24,6.3484]
[1722271946760,5.3966,185.3,185.24,11.7467]
[1722271946966,5.3963,185.31,185.24,11.7467]
[1722271947153,5.3967,185.3,185.24,6.3484]
[1722271947372,25.27,185.33,185.24,6.3484]
[1722271947758,5.3965,185.31,185.24,11.7465]
[1722271947956,1.34947622,185.39,185.25,20.0]
[1722271948183,25.27,185.35,185.25,40.0]
[1722271948679,30.6654,185.35,185.28,5.3972]
[1722271949070,25.27,185.35,185.27,5.3974]
[1722271949657,5.3954,185.34,185.27,5.3974]
[1722271949886,6.74441959,185.35,185.25,40.0]
[1722271950084,5.3956,185.34,185.25,40.0]
[1722271950271,5.3956,185.34,185.27,5.3974]
[1722271950465,5.3956,185.34,185.28,5.3972]
[1722271950785,5.3956,185.34,185.27,5.3974]
[1722271951683,5.3957,185.33,185.26,5.3977]
[1722271951992,5.3962,185.32,185.26,5.3977]
[1722271952682,1001.34937087,185.34,185.24,6.3484]
[1722271952865,5.3961,185.32,185.26,5.3977]
[1722271953066,5.3958,185.33,185.27,5.3974]
[1722271953276,6.74514099,185.33,185.27,5.3974]
[1722271954373,5.3958,185.33,185.27,5.3974]
[1722271954588,5.3966,185.31,185.25,5.398]
[1722271954763,5.3963,185.31,185.25,5.398]
[1722271955097,1.34934011,185.32,185.26,5.3976]
[1722271955261,5.3959,185.33,185.27,5.3974]
[1722271955461,1030.6655,185.34,185.25,20.0]
[1722271955663,1.34933922,185.33,185.25,20.0]
[1722271955965,1000.0,185.34,185.33,5.3957]
[1722271956163,1000.0,185.34,185.32,5.396]
[1722271956581,1000.0,185.34,185.3,20.0]
[1722271957082,1000.0,185.34,185.31,22.8343]
[1722271957281,1000.0,185.34,185.32,5.396]
[1722271957504,1000.0,185.34,185.31,22.8343]
[1722271957675,1000.0,185.34,185.31,28.2304]
[1722271957986,1000.0,185.34,185.32,5.3959]
[1722271958691,1000.0,185.34,185.31,28.2306]
[1722271959271,1000.0,185.34,185.32,5.3958]
[1722271959477,1000.0,185.34,185.31,22.8343]
[1722271960074,1000.0,185.34,185.31,28.2305]
[1722271960401,1000.0,185.34,185.32,5.396]
[1722271960779,1000.0,185.34,185.31,28.2306]
[1722271961673,1000.0,185.34,185.31,22.8343]
[1722271961880,1000.0,185.34,185.31,28.2305]
[1722271962988,1000.0,185.34,185.31,22.8343]
[1722271963783,1000.0,185.34,185.31,28.2306]
[1722271963977,1000.0,185.34,185.31,42.8343]
[1722271964365,1000.0,185.34,185.33,5.3957]
[1722271964779,1000.0,185.34,185.31,48.2304]
[1722271964984,1000.0,185.34,185.31,22.8343]
[1722271965692,1000.0,185.34,185.31,28.2304]
[1722271965893,1000.0,185.34,185.31,6.2045]
[1722271966073,1000.0,185.34,185.32,5.3959]
[1722271966282,1000.0,185.34,185.32,5.396]
[1722271967177,1000.0,185.34,185.33,5.3957]
[1722271968990,1000.0,185.34,185.33,25.3957]
[1722271969289,1000.0,185.34,185.33,5.3957]
[1722271970387,1000.0,185.34,185.32,5.3958]
[1722271970583,1000.0,185.34,185.31,6.2045]
[1722271971468,1000.0,185.34,185.27,15.1011]
[1722271972067,1000.0,185.34,185.29,5.3967]
[1722271972272,1000.0,185.34,185.3,5.3966]
[1722271972491,1000.0,185.34,185.31,5.3962]
[1722271973177,1000.0,185.34,185.27,15.1011]
[1722271973380,1000.0,185.34,185.27,35.1011]
[1722271973687,1000.0,185.34,185.3,5.3964]
[1722271973873,1000.0,185.34,185.31,5.3963]
[1722271974573,1000.0,185.34,185.3,5.3966]
[1722271975690,1000.0,185.34,185.31,5.3963]
[1722271975892,1000.0,185.34,185.3,5.3966]
[1722271976195,1000.0,185.34,185.31,5.3961]
[1722271976400,1000.0,185.34,185.3,5.3965]
[1722271976580,1.34916523,185.33,185.27,15.1011]
[1722271976894,6.74496523,185.33,185.27,5.3972]
[1722271977071,5.3958,185.33,185.27,5.3972]
[1722271977274,1.34933823,185.33,185.26,6.2452]
[1722271977468,1.34916917,185.32,185.29,5.3969]
[1722271977673,1000.0,185.34,185.29,5.3969]
[1722271978094,1000.0,185.34,185.3,5.3966]
[1722271978300,1000.0,185.34,185.31,5.396]
[1722271978505,1000.0,185.34,185.3,5.3966]
[1722271979080,1005.3955,185.34,185.28,5.397]
[1722271979300,1005.3955,185.34,185.29,5.3969]
[1722271979474,1005.3955,185.34,185.28,5.3972]
[1722271979678,1000.0,185.34,185.28,20.0]
[1722271979879,1000.0,185.34,185.31,5.3963]
[1722271980174,1000.0,185.34,185.3,5.3965]
[1722271980610,1.34918429,185.33,185.26,6.2452]
[1722271980902,5.3958,185.33,185.27,5.3975]
[1722271981279,5.3961,185.32,185.26,11.6429]
[1722271981480,1000.0,185.34,185.27,5.3974]
[1722271981795,1005.3955,185.34,185.28,5.3971]
[1722271982184,1005.3955,185.34,185.27,5.3974]
[1722271982185,1000.0,185.34,185.27,5.3974]
[1722271982591,1.34939507,185.33,185.26,6.2452]
[1722271982922,5.396,185.33,185.24,20.0]
[1722271983084,1005.3955,185.34,185.29,5.3969]
[1722271983285,1000.0,185.34,185.26,20.0]
[1722271983600,6.74503425,185.33,185.24,20.0]
[1722271983798,1.34923425,185.33,185.23,20.0]
[1722271984303,5.3965,185.31,185.25,5.3978]
[1722271984484,5.3965,185.31,185.26,5.3977]
[1722271984683,1000.0,185.34,185.26,5.3977]
[1722271984684,5.3961,185.32,185.26,5.3977]
[1722271984879,1005.3955,185.34,185.22,35.5279]
[1722271985103,1005.3954,185.34,185.29,5.3966]
[1722271985406,1000.0,185.34,185.3,5.3965]
[1722271985605,1000.0,185.34,185.27,20.0]
[1722271985807,1000.0,185.34,185.25,20.0]
[1722271985979,1.34915637,185.33,185.25,20.0]
[1722271986184,1000.0,185.34,185.29,5.3968]
[1722271986496,1.3492194,185.33,185.22,15.5279]
[1722271986699,5.3975,185.27,185.22,15.5279]
[1722271986892,2.60506049,185.33,185.22,20.9268]
[1722271986893,1.34968547,185.26,185.22,20.9268]
[1722271987082,5.3972,185.28,185.22,15.5279]
[1722271987287,5.3972,185.28,185.22,20.9266]
[1722271987816,1.25584109,185.33,185.22,35.5279]
[1722271988106,6.65164109,185.33,185.24,20.0]
[1722271988308,6.65164109,185.33,185.25,20.0]
[1722271988688,1.25584109,185.33,185.25,20.0]